[Event "Late-Titled-Tuesday-Blitz-February-20-2024"]
[Site "Chess.com"]
[Date "2024.02.20"]
[Round "1"]
[White "platy3"]
[Black "ATM622"]
[Result "1-0"]
[WhiteElo "2946"]
[BlackElo "2473"]
[TimeControl "180+1"]
[EndTime "14:05:31 PST"]
[Termination "platy3 won by resignation"]

1. e4 {[%clk 0:03:00.9]} 1... c6 {[%clk 0:02:59.3]} 2. Nf3 {[%clk 0:02:58.7]}
2... d5 {[%clk 0:02:59.6]} 3. Nc3 {[%clk 0:02:59.3]} 3... dxe4 {[%clk
0:02:59.3]} 4. Nxe4 {[%clk 0:02:59]} 4... Bg4 {[%clk 0:02:58.9]} 5. Bc4 {[%clk
0:02:57.1]} 5... Bxf3 {[%clk 0:02:57.4]} 6. Qxf3 {[%clk 0:02:56.7]} 6... Nf6
{[%clk 0:02:57.3]} 7. O-O {[%clk 0:02:55.6]} 7... e6 {[%clk 0:02:50.5]} 8. c3
{[%clk 0:02:53]} 8... Nbd7 {[%clk 0:02:46.4]} 9. d4 {[%clk 0:02:52.4]} 9... Be7
{[%clk 0:02:42.6]} 10. Ng3 {[%clk 0:02:44.3]} 10... O-O {[%clk 0:02:35.7]} 11.
Re1 {[%clk 0:02:44.1]} 11... b5 {[%clk 0:02:13.6]} 12. Bb3 {[%clk 0:02:35.2]}
12... Qb6 {[%clk 0:02:03.6]} 13. Nf5 {[%clk 0:02:29.6]} 13... exf5 {[%clk
0:01:53]} 14. Rxe7 {[%clk 0:02:29]} 14... Rae8 {[%clk 0:01:52.7]} 15. Rxe8
{[%clk 0:02:20.8]} 15... Rxe8 {[%clk 0:01:52]} 16. Bg5 {[%clk 0:02:14.3]} 16...
g6 {[%clk 0:01:51.4]} 17. h3 {[%clk 0:02:09]} 17... Ne4 {[%clk 0:01:45.2]} 18.
Be3 {[%clk 0:02:06.3]} 18... Qd8 {[%clk 0:01:40.2]} 19. Rd1 {[%clk 0:02:02.9]}
19... Qf6 {[%clk 0:01:35]} 20. Bf4 {[%clk 0:01:57.5]} 20... a5 {[%clk
0:01:31.3]} 21. a3 {[%clk 0:01:48.8]} 21... a4 {[%clk 0:01:30]} 22. Ba2 {[%clk
0:01:47.8]} 22... Qe7 {[%clk 0:01:20.3]} 23. g4 {[%clk 0:01:32.5]} 23... fxg4
{[%clk 0:01:05.2]} 24. hxg4 {[%clk 0:01:33.4]} 24... Qh4 {[%clk 0:01:00.7]} 25.
Bxf7+ {[%clk 0:01:25.7]} 25... Kg7 {[%clk 0:00:42.4]} 26. Bxe8 {[%clk
0:01:19.8]} 26... Nxf2 {[%clk 0:00:42.4]} 27. Bg3 {[%clk 0:01:12.1]} 27... Nh3+
{[%clk 0:00:34.5]} 28. Kg2 {[%clk 0:01:09.7]} 1-0

[Event "Late-Titled-Tuesday-Blitz-February-20-2024"]
[Site "Chess.com"]
[Date "2024.02.20"]
[Round "1"]
[White "prime-morty"]
[Black "rcmz"]
[Result "1-0"]
[WhiteElo "2552"]
[BlackElo "2173"]
[TimeControl "180+1"]
[EndTime "14:05:31 PST"]
[Termination "prime-morty won by resignation"]

1. c4 {[%clk 0:03:00.9]} 1... d6 {[%clk 0:02:58.2]} 2. Nc3 {[%clk 0:02:50.3]}
2... Nd7 {[%clk 0:02:55.8]} 3. g3 {[%clk 0:02:50.6]} 3... c6 {[%clk 0:02:54.7]}
4. Bg2 {[%clk 0:02:48.4]} 4... h6 {[%clk 0:02:54.7]} 5. d4 {[%clk 0:02:47.3]}
5... g5 {[%clk 0:02:54.2]} 6. h4 {[%clk 0:02:46]} 6... g4 {[%clk 0:02:52.6]} 7.
e4 {[%clk 0:02:44.5]} 7... h5 {[%clk 0:02:50]} 8. f3 {[%clk 0:02:40.9]} 8...
Ngf6 {[%clk 0:02:49]} 9. d5 {[%clk 0:02:30.7]} 9... Qb6 {[%clk 0:02:36.5]} 10.
f4 {[%clk 0:02:27]} 10... Bg7 {[%clk 0:02:29.3]} 11. Qe2 {[%clk 0:02:22.2]}
11... Qc7 {[%clk 0:02:26.2]} 12. Be3 {[%clk 0:02:20.9]} 12... a6 {[%clk
0:02:20.3]} 13. Rc1 {[%clk 0:02:20]} 13... c5 {[%clk 0:02:20]} 14. Qd2 {[%clk
0:02:13.5]} 14... Qa5 {[%clk 0:02:17.6]} 15. a3 {[%clk 0:02:06.4]} 15... b5
{[%clk 0:02:11.2]} 16. cxb5 {[%clk 0:02:05.7]} 16... axb5 {[%clk 0:02:09.8]} 17.
Nge2 {[%clk 0:02:01.7]} 17... b4 {[%clk 0:02:06.6]} 18. axb4 {[%clk 0:02:01.6]}
18... Qxb4 {[%clk 0:02:06.1]} 19. O-O {[%clk 0:01:57.2]} 19... Ba6 {[%clk
0:02:03.7]} 20. e5 {[%clk 0:01:50.8]} 20... dxe5 {[%clk 0:01:56.3]} 21. d6
{[%clk 0:01:51.1]} 21... Rc8 {[%clk 0:01:44.5]} 22. dxe7 {[%clk 0:01:51]} 22...
Bxe2 {[%clk 0:01:37.7]} 23. Qxe2 {[%clk 0:01:48.3]} 23... Kxe7 {[%clk
0:01:24.1]} 24. fxe5 {[%clk 0:01:47.7]} 24... Nxe5 {[%clk 0:01:23.4]} 25. Bg5
{[%clk 0:01:42.3]} 25... Qd4+ {[%clk 0:01:20]} 26. Kh1 {[%clk 0:01:42.4]} 26...
Ke6 {[%clk 0:01:03.4]} 27. Rcd1 {[%clk 0:01:19.6]} 27... Qc4 {[%clk 0:00:53.2]}
28. Rxf6+ {[%clk 0:01:10.4]} 28... Bxf6 {[%clk 0:00:44.8]} 29. Bd5+ {[%clk
0:01:10.3]} 29... Qxd5+ {[%clk 0:00:41.5]} 30. Rxd5 {[%clk 0:01:09.9]} 1-0

[Event "Late-Titled-Tuesday-Blitz-February-20-2024"]
[Site "Chess.com"]
[Date "2024.02.20"]
[Round "1"]
[White "AlexTruskavetsky"]
[Black "Kopytkin"]
[Result "1-0"]
[WhiteElo "2712"]
[BlackElo "2377"]
[TimeControl "180+1"]
[EndTime "14:05:39 PST"]
[Termination "AlexTruskavetsky won on time"]

1. d4 {[%clk 0:02:55.2]} 1... Nf6 {[%clk 0:02:58.2]} 2. c4 {[%clk 0:02:55.2]}
2... d6 {[%clk 0:02:58.2]} 3. Nc3 {[%clk 0:02:55.2]} 3... e5 {[%clk 0:02:57.4]}
4. Nf3 {[%clk 0:02:47.3]} 4... Nc6 {[%clk 0:02:52.9]} 5. d5 {[%clk 0:02:46.2]}
5... Nb8 {[%clk 0:02:52.2]} 6. e4 {[%clk 0:02:46.4]} 6... g6 {[%clk 0:02:46.1]}
7. Be2 {[%clk 0:02:40.3]} 7... Bg7 {[%clk 0:02:44]} 8. O-O {[%clk 0:02:40.9]}
8... O-O {[%clk 0:02:43.6]} 9. Rb1 {[%clk 0:02:41.4]} 9... a5 {[%clk 0:02:43.7]}
10. a3 {[%clk 0:02:41.3]} 10... a4 {[%clk 0:02:38.2]} 11. Nxa4 {[%clk
0:02:41.3]} 11... Nxe4 {[%clk 0:02:37.4]} 12. Bd3 {[%clk 0:02:39.2]} 12... Nc5
{[%clk 0:02:09.6]} 13. Nxc5 {[%clk 0:02:38.4]} 13... dxc5 {[%clk 0:02:10.5]} 14.
b4 {[%clk 0:02:38.8]} 14... Na6 {[%clk 0:02:00.9]} 15. Re1 {[%clk 0:02:31]}
15... Re8 {[%clk 0:01:59.7]} 16. Bb2 {[%clk 0:02:22.2]} 16... Qd6 {[%clk
0:01:30]} 17. b5 {[%clk 0:02:20.4]} 17... Nb8 {[%clk 0:01:29.7]} 18. Qe2 {[%clk
0:02:18.3]} 18... Bg4 {[%clk 0:01:20.6]} 19. h3 {[%clk 0:02:14.7]} 19... Bxf3
{[%clk 0:01:20.6]} 20. Qxf3 {[%clk 0:02:15.6]} 20... Nd7 {[%clk 0:01:20.4]} 21.
g4 {[%clk 0:02:14.7]} 21... f6 {[%clk 0:01:10.9]} 22. h4 {[%clk 0:02:12.8]}
22... Rf8 {[%clk 0:00:50.4]} 23. h5 {[%clk 0:02:12.5]} 23... f5 {[%clk
0:00:50.8]} 24. gxf5 {[%clk 0:02:10.8]} 24... gxf5 {[%clk 0:00:50.6]} 25. Bxf5
{[%clk 0:02:10.7]} 25... Kh8 {[%clk 0:00:32.1]} 26. Qh3 {[%clk 0:02:10.1]} 26...
Nb6 {[%clk 0:00:21.1]} 27. h6 {[%clk 0:01:52.5]} 27... Bf6 {[%clk 0:00:18.2]}
28. Re4 {[%clk 0:01:52.9]} 28... Rg8+ {[%clk 0:00:15.9]} 29. Kh1 {[%clk
0:01:52.9]} 29... Rg5 {[%clk 0:00:15.3]} 30. Rbe1 {[%clk 0:01:52.4]} 30... Rag8
{[%clk 0:00:14.2]} 31. Rxe5 {[%clk 0:01:48.6]} 31... Bxe5 {[%clk 0:00:02.5]} 32.
Bxe5+ {[%clk 0:01:47.9]} 32... Qxe5 {[%clk 0:00:02.9]} 33. Rxe5 {[%clk
0:01:48.8]} 33... Nxc4 {[%clk 0:00:02.5]} 34. Re7 {[%clk 0:01:48.7]} 1-0

[Event "Late-Titled-Tuesday-Blitz-February-20-2024"]
[Site "Chess.com"]
[Date "2024.02.20"]
[Round "1"]
[White "Superfelix"]
[Black "OparinGrigoriy"]
[Result "1-0"]
[WhiteElo "2509"]
[BlackElo "2982"]
[TimeControl "180+1"]
[EndTime "14:05:40 PST"]
[Termination "Superfelix won by resignation"]

1. e4 {[%clk 0:03:00.9]} 1... d6 {[%clk 0:02:59.2]} 2. d4 {[%clk 0:02:59.8]}
2... g6 {[%clk 0:02:58]} 3. Nc3 {[%clk 0:03:00.3]} 3... Bg7 {[%clk 0:02:58.6]}
4. f4 {[%clk 0:03:00.5]} 4... a6 {[%clk 0:02:58.7]} 5. a4 {[%clk 0:02:59.7]}
5... Nc6 {[%clk 0:02:56.3]} 6. Be3 {[%clk 0:02:57.6]} 6... Nf6 {[%clk
0:02:54.3]} 7. d5 {[%clk 0:02:57.4]} 7... Nb4 {[%clk 0:02:52.7]} 8. Nf3 {[%clk
0:02:54.5]} 8... a5 {[%clk 0:02:47.7]} 9. Bc4 {[%clk 0:02:45.7]} 9... O-O {[%clk
0:02:46.8]} 10. O-O {[%clk 0:02:43.6]} 10... c6 {[%clk 0:02:47.4]} 11. dxc6
{[%clk 0:02:41.7]} 11... bxc6 {[%clk 0:02:47.5]} 12. Kh1 {[%clk 0:02:39.2]}
12... d5 {[%clk 0:02:45.9]} 13. exd5 {[%clk 0:02:39.5]} 13... cxd5 {[%clk
0:02:46.8]} 14. Bb3 {[%clk 0:02:37.1]} 14... Bg4 {[%clk 0:02:43]} 15. Qd2 {[%clk
0:02:35.1]} 15... Bxf3 {[%clk 0:02:39.4]} 16. gxf3 {[%clk 0:02:34.7]} 16... Ne4
{[%clk 0:02:39.9]} 17. fxe4 {[%clk 0:02:34.1]} 17... d4 {[%clk 0:02:40.3]} 18.
Rad1 {[%clk 0:02:27.9]} 18... dxe3 {[%clk 0:02:26.4]} 19. Qxe3 {[%clk
0:02:27.6]} 19... Qc7 {[%clk 0:02:25.8]} 20. e5 {[%clk 0:02:26.9]} 20... e6
{[%clk 0:02:24.8]} 21. Nb5 {[%clk 0:02:16.5]} 21... Qb8 {[%clk 0:02:18.1]} 22.
c3 {[%clk 0:02:14.9]} 22... Na6 {[%clk 0:02:17.8]} 23. Rd7 {[%clk 0:02:12.2]}
23... Rc8 {[%clk 0:02:13.7]} 24. f5 {[%clk 0:02:04.4]} 24... Nc5 {[%clk
0:02:10.8]} 25. fxe6 {[%clk 0:01:58.5]} 25... Nxd7 {[%clk 0:02:00.5]} 26. exd7
{[%clk 0:01:54.8]} 26... Qb7+ {[%clk 0:01:54]} 27. Kg1 {[%clk 0:01:51.7]} 27...
Rf8 {[%clk 0:01:52.9]} 28. Rxf7 {[%clk 0:01:17.5]} 28... Rxf7 {[%clk 0:01:47.7]}
29. Bxf7+ {[%clk 0:01:17.2]} 29... Kh8 {[%clk 0:01:47.8]} 30. e6 {[%clk
0:01:14.4]} 30... Qd5 {[%clk 0:01:05]} 31. e7 {[%clk 0:01:06]} 31... Qd1+ {[%clk
0:01:05.2]} 32. Kf2 {[%clk 0:01:02.1]} 32... Qc2+ {[%clk 0:01:04.7]} 33. Kg3
{[%clk 0:00:56.4]} 33... h5 {[%clk 0:01:00.4]} 34. e8=Q+ {[%clk 0:00:49.6]}
34... Kh7 {[%clk 0:01:00.9]} 35. Bxg6+ {[%clk 0:00:47.1]} 1-0

[Event "Late-Titled-Tuesday-Blitz-February-20-2024"]
[Site "Chess.com"]
[Date "2024.02.20"]
[Round "1"]
[White "rezamahdavi2008"]
[Black "Mikhal867"]
[Result "1-0"]
[WhiteElo "2832"]
[BlackElo "2433"]
[TimeControl "180+1"]
[EndTime "14:05:40 PST"]
[Termination "rezamahdavi2008 won on time"]

1. d4 {[%clk 0:03:00.9]} 1... Nf6 {[%clk 0:02:58.7]} 2. c4 {[%clk 0:02:58]} 2...
g6 {[%clk 0:02:57.4]} 3. Nf3 {[%clk 0:02:56.8]} 3... Bg7 {[%clk 0:02:57.6]} 4.
g3 {[%clk 0:02:57.3]} 4... O-O {[%clk 0:02:58.2]} 5. Bg2 {[%clk 0:02:58]} 5...
d6 {[%clk 0:02:58.7]} 6. O-O {[%clk 0:02:56.3]} 6... Nbd7 {[%clk 0:02:59.2]} 7.
Nc3 {[%clk 0:02:54.2]} 7... e5 {[%clk 0:02:59.5]} 8. e4 {[%clk 0:02:44.7]} 8...
c6 {[%clk 0:02:59.6]} 9. h3 {[%clk 0:02:42.7]} 9... Qb6 {[%clk 0:02:59.4]} 10.
Re1 {[%clk 0:02:40.8]} 10... Qb4 {[%clk 0:02:50]} 11. Bf1 {[%clk 0:02:03.4]}
11... exd4 {[%clk 0:02:44.9]} 12. Nxd4 {[%clk 0:02:04.3]} 12... Ne5 {[%clk
0:02:30.9]} 13. Nc2 {[%clk 0:02:01.2]} 13... Qa5 {[%clk 0:02:22]} 14. f4 {[%clk
0:01:56.7]} 14... Ned7 {[%clk 0:01:52.8]} 15. Qxd6 {[%clk 0:01:56.4]} 15... Re8
{[%clk 0:01:43.3]} 16. e5 {[%clk 0:01:56.1]} 16... Nh5 {[%clk 0:01:35.1]} 17.
Kh2 {[%clk 0:01:51.5]} 17... Nxe5 {[%clk 0:01:19.9]} 18. fxe5 {[%clk 0:01:45.2]}
18... Rxe5 {[%clk 0:01:14.9]} 19. b4 {[%clk 0:01:39]} 19... Qb6 {[%clk
0:01:04.2]} 20. c5 {[%clk 0:01:34.7]} 20... Rxe1 {[%clk 0:00:52.9]} 21. cxb6
{[%clk 0:01:34.7]} 21... Bxc3 {[%clk 0:00:22.7]} 22. Nxe1 {[%clk 0:01:32.1]}
22... Bxa1 {[%clk 0:00:18.3]} 23. Qd8+ {[%clk 0:01:32.5]} 23... Kg7 {[%clk
0:00:18.1]} 24. Nf3 {[%clk 0:01:31.6]} 24... axb6 {[%clk 0:00:16.1]} 25. Bc4
{[%clk 0:01:31]} 25... Bf6 {[%clk 0:00:13.8]} 26. Qe8 {[%clk 0:01:29]} 1-0

[Event "Late-Titled-Tuesday-Blitz-February-20-2024"]
[Site "Chess.com"]
[Date "2024.02.20"]
[Round "1"]
[White "Doudou2015"]
[Black "TokChess"]
[Result "0-1"]
[WhiteElo "2185"]
[BlackElo "2557"]
[TimeControl "180+1"]
[EndTime "14:05:41 PST"]
[Termination "TokChess won on time"]

1. b3 {[%clk 0:02:59.7]} 1... d5 {[%clk 0:02:59.7]} 2. Bb2 {[%clk 0:03:00.6]}
2... Nf6 {[%clk 0:03:00]} 3. e3 {[%clk 0:03:00.8]} 3... e6 {[%clk 0:03:00]} 4.
f4 {[%clk 0:03:00.8]} 4... c5 {[%clk 0:02:59.2]} 5. Nf3 {[%clk 0:02:59.6]} 5...
Nc6 {[%clk 0:02:59.7]} 6. Bb5 {[%clk 0:03:00]} 6... Bd7 {[%clk 0:02:59.1]} 7.
Bxc6 {[%clk 0:03:00.9]} 7... Bxc6 {[%clk 0:02:58.6]} 8. Ne5 {[%clk 0:03:01.8]}
8... Qc7 {[%clk 0:02:58.1]} 9. O-O {[%clk 0:03:02.7]} 9... Bd6 {[%clk
0:02:54.8]} 10. d3 {[%clk 0:03:02.5]} 10... O-O {[%clk 0:02:53.5]} 11. Nd2
{[%clk 0:03:01.5]} 11... Nd7 {[%clk 0:02:52.5]} 12. Nxd7 {[%clk 0:03:00.3]}
12... Qxd7 {[%clk 0:02:51.7]} 13. Nf3 {[%clk 0:02:56.9]} 13... f6 {[%clk
0:02:52]} 14. Qe1 {[%clk 0:02:52.9]} 14... Rae8 {[%clk 0:02:49.8]} 15. Qh4
{[%clk 0:02:52.6]} 15... Qf7 {[%clk 0:02:46.1]} 16. h3 {[%clk 0:02:49.5]} 16...
Qg6 {[%clk 0:02:45.6]} 17. Nh2 {[%clk 0:02:46.6]} 17... e5 {[%clk 0:02:33.9]}
18. Rf3 {[%clk 0:02:35.1]} 18... exf4 {[%clk 0:02:23.2]} 19. exf4 {[%clk
0:02:36]} 19... d4 {[%clk 0:02:20.7]} 20. Rg3 {[%clk 0:02:13.7]} 20... Qf5
{[%clk 0:02:19.1]} 21. Ng4 {[%clk 0:02:02.2]} 21... Kh8 {[%clk 0:02:16.3]} 22.
Rf1 {[%clk 0:01:55.8]} 22... Re2 {[%clk 0:02:11.3]} 23. Nh2 {[%clk 0:00:24.9]}
23... Rxc2 {[%clk 0:02:00.4]} 24. Bc1 {[%clk 0:00:18.7]} 24... Re8 {[%clk
0:01:50.1]} 25. Nf3 {[%clk 0:00:06.5]} 25... Rxc1 {[%clk 0:01:30.1]} 26. Rxc1
{[%clk 0:00:04.9]} 26... Qxf4 {[%clk 0:01:30.6]} 0-1

[Event "Late-Titled-Tuesday-Blitz-February-20-2024"]
[Site "Chess.com"]
[Date "2024.02.20"]
[Round "1"]
[White "Eloist"]
[Black "jcibarra"]
[Result "0-1"]
[WhiteElo "2471"]
[BlackElo "2930"]
[TimeControl "180+1"]
[EndTime "14:05:42 PST"]
[Termination "jcibarra won by resignation"]

1. e4 {[%clk 0:02:59.7]} 1... c5 {[%clk 0:02:58.4]} 2. Nf3 {[%clk 0:02:59.6]}
2... e6 {[%clk 0:02:58]} 3. d4 {[%clk 0:02:59.2]} 3... cxd4 {[%clk 0:02:58.2]}
4. Nxd4 {[%clk 0:03:00.1]} 4... Bc5 {[%clk 0:02:58.2]} 5. Nc3 {[%clk 0:02:59.1]}
5... Qb6 {[%clk 0:02:56.5]} 6. Na4 {[%clk 0:02:53.7]} 6... Qa5+ {[%clk 0:02:56]}
7. c3 {[%clk 0:02:52.7]} 7... Bxd4 {[%clk 0:02:55.1]} 8. Qxd4 {[%clk 0:02:51.8]}
8... Nf6 {[%clk 0:02:55.2]} 9. Nc5 {[%clk 0:02:34.3]} 9... Nc6 {[%clk
0:02:54.7]} 10. Qd6 {[%clk 0:02:30.9]} 10... b6 {[%clk 0:02:51]} 11. Nb3 {[%clk
0:02:10.9]} 11... Qe5 {[%clk 0:02:50]} 12. Qxe5 {[%clk 0:02:06.6]} 12... Nxe5
{[%clk 0:02:50.9]} 13. f4 {[%clk 0:02:01.4]} 13... Ng6 {[%clk 0:02:50.9]} 14. e5
{[%clk 0:01:57.1]} 14... Nd5 {[%clk 0:02:51.2]} 15. g3 {[%clk 0:01:50.2]} 15...
Bb7 {[%clk 0:02:51.7]} 16. Rg1 {[%clk 0:01:48.9]} 16... O-O-O {[%clk 0:02:51.3]}
17. Bd2 {[%clk 0:01:45.2]} 17... d6 {[%clk 0:02:51.1]} 18. exd6 {[%clk
0:01:41.5]} 18... Rxd6 {[%clk 0:02:52]} 19. O-O-O {[%clk 0:01:40.9]} 19... Rhd8
{[%clk 0:02:52.1]} 20. Bg2 {[%clk 0:01:28.6]} 20... Kb8 {[%clk 0:02:49]} 21. h4
{[%clk 0:00:53.2]} 21... h5 {[%clk 0:02:42.6]} 22. Nd4 {[%clk 0:00:42.1]} 22...
Nge7 {[%clk 0:02:39.3]} 23. Bf3 {[%clk 0:00:40.5]} 23... Nf6 {[%clk 0:02:38.6]}
24. Bxb7 {[%clk 0:00:39.3]} 24... Kxb7 {[%clk 0:02:38.7]} 25. Be3 {[%clk
0:00:36.2]} 25... Ng4 {[%clk 0:02:35.6]} 26. Rge1 {[%clk 0:00:27.5]} 26... g6
{[%clk 0:02:04.1]} 27. Bg1 {[%clk 0:00:26.6]} 27... a6 {[%clk 0:02:02]} 28. Nf3
{[%clk 0:00:21.1]} 28... Nf5 {[%clk 0:01:57.3]} 29. Rxd6 {[%clk 0:00:19.9]}
29... Rxd6 {[%clk 0:01:57.1]} 30. Ng5 {[%clk 0:00:13.6]} 30... Rd7 {[%clk
0:01:44.7]} 31. Ne4 {[%clk 0:00:13.6]} 31... Rd3 {[%clk 0:01:41.4]} 32. Kc2
{[%clk 0:00:10.9]} 32... Rf3 {[%clk 0:01:37.5]} 33. Rd1 {[%clk 0:00:10.6]} 33...
Nfe3+ {[%clk 0:01:36.3]} 34. Bxe3 {[%clk 0:00:09.5]} 34... Nxe3+ {[%clk
0:01:37.2]} 0-1

[Event "Late-Titled-Tuesday-Blitz-February-20-2024"]
[Site "Chess.com"]
[Date "2024.02.20"]
[Round "1"]
[White "Malev212"]
[Black "AsaHoffmann"]
[Result "1-0"]
[WhiteElo "2695"]
[BlackElo "2370"]
[TimeControl "180+1"]
[EndTime "14:05:43 PST"]
[Termination "Malev212 won by resignation"]

1. e4 {[%clk 0:03:00.9]} 1... d6 {[%clk 0:02:54.8]} 2. d4 {[%clk 0:02:59.3]}
2... c6 {[%clk 0:02:53.2]} 3. Nc3 {[%clk 0:02:57.8]} 3... a6 {[%clk 0:02:50.4]}
4. f4 {[%clk 0:02:56.5]} 4... d5 {[%clk 0:02:50]} 5. e5 {[%clk 0:02:51.3]} 5...
h5 {[%clk 0:02:48.1]} 6. Nf3 {[%clk 0:02:49.5]} 6... Bg4 {[%clk 0:02:46.8]} 7.
Be3 {[%clk 0:02:47.9]} 7... e6 {[%clk 0:02:46.7]} 8. h3 {[%clk 0:02:47.5]} 8...
Bxf3 {[%clk 0:02:46.1]} 9. Qxf3 {[%clk 0:02:48]} 9... g6 {[%clk 0:02:44.5]} 10.
Bd3 {[%clk 0:02:42.6]} 10... h4 {[%clk 0:02:43.2]} 11. Ne2 {[%clk 0:02:39.6]}
11... Qc7 {[%clk 0:02:42]} 12. O-O {[%clk 0:02:39]} 12... c5 {[%clk 0:02:40.3]}
13. c4 {[%clk 0:02:28.3]} 13... dxc4 {[%clk 0:02:32.8]} 14. Be4 {[%clk 0:02:19]}
14... Nc6 {[%clk 0:02:25.7]} 15. d5 {[%clk 0:02:09.9]} 15... exd5 {[%clk
0:02:20.9]} 16. Bxd5 {[%clk 0:02:09.7]} 16... Nge7 {[%clk 0:02:20.1]} 17. Nc3
{[%clk 0:01:59]} 17... Nf5 {[%clk 0:02:17.6]} 18. Bxc4 {[%clk 0:01:45.9]} 18...
Ncd4 {[%clk 0:02:14.5]} 19. Bxd4 {[%clk 0:01:36.2]} 19... Nxd4 {[%clk
0:02:09.6]} 20. Qg4 {[%clk 0:01:26.8]} 20... Be7 {[%clk 0:02:00.6]} 21. Nd5
{[%clk 0:01:22.8]} 21... Qc8 {[%clk 0:01:54.7]} 22. f5 {[%clk 0:01:07.4]} 22...
gxf5 {[%clk 0:01:46.9]} 23. Qg7 {[%clk 0:01:04.9]} 23... Rf8 {[%clk 0:01:46.1]}
24. Rae1 {[%clk 0:00:59.1]} 24... b5 {[%clk 0:01:34]} 25. Nf6+ {[%clk
0:00:54.8]} 25... Kd8 {[%clk 0:01:31.3]} 26. Bd5 {[%clk 0:00:53.4]} 26... Ra7
{[%clk 0:01:29.5]} 27. Bxf7 {[%clk 0:00:49.7]} 27... Bxf6 {[%clk 0:01:12]} 28.
Qxf8+ {[%clk 0:00:46.3]} 28... Kc7 {[%clk 0:01:11.6]} 29. Qd6+ {[%clk
0:00:41.2]} 29... Kb7 {[%clk 0:01:10.8]} 30. Bd5+ {[%clk 0:00:39.8]} 30... Nc6
{[%clk 0:01:06]} 31. exf6 {[%clk 0:00:39.2]} 1-0

[Event "Late-Titled-Tuesday-Blitz-February-20-2024"]
[Site "Chess.com"]
[Date "2024.02.20"]
[Round "1"]
[White "Boundless_Strike"]
[Black "STAYFlow"]
[Result "1-0"]
[WhiteElo "2637"]
[BlackElo "2326"]
[TimeControl "180+1"]
[EndTime "14:05:46 PST"]
[Termination "Boundless_Strike won on time"]

1. d4 {[%clk 0:03:00.9]} 1... d5 {[%clk 0:02:53.3]} 2. e4 {[%clk 0:03:01]} 2...
dxe4 {[%clk 0:02:48.7]} 3. Nc3 {[%clk 0:03:01.2]} 3... e5 {[%clk 0:02:20.4]} 4.
Qh5 {[%clk 0:03:00.3]} 4... Nf6 {[%clk 0:02:12]} 5. Qxe5+ {[%clk 0:02:58.6]}
5... Be7 {[%clk 0:02:11.8]} 6. Bb5+ {[%clk 0:02:09.3]} 6... Bd7 {[%clk 0:01:58]}
7. Be3 {[%clk 0:02:04.2]} 7... O-O {[%clk 0:01:55.8]} 8. O-O-O {[%clk
0:02:02.6]} 8... Bd6 {[%clk 0:01:47.4]} 9. Qg5 {[%clk 0:02:00.1]} 9... Nc6
{[%clk 0:01:37.7]} 10. Nh3 {[%clk 0:01:55.4]} 10... Re8 {[%clk 0:01:30.1]} 11.
Qh4 {[%clk 0:01:48.8]} 11... Nb4 {[%clk 0:00:59]} 12. Bg5 {[%clk 0:01:46]} 12...
Nxa2+ {[%clk 0:00:47.9]} 13. Nxa2 {[%clk 0:01:43]} 13... Bxb5 {[%clk 0:00:48]}
14. Nc3 {[%clk 0:01:43.1]} 14... Bc4 {[%clk 0:00:37.4]} 15. Rhe1 {[%clk
0:01:36.5]} 15... Be7 {[%clk 0:00:19.7]} 16. d5 {[%clk 0:01:24.9]} 16... Qd6
{[%clk 0:00:18]} 17. Rd4 {[%clk 0:01:19.5]} 17... b5 {[%clk 0:00:15.9]} 18. Nxe4
{[%clk 0:01:19.7]} 18... Nxe4 {[%clk 0:00:14.5]} 19. Rdxe4 {[%clk 0:01:19]}
19... Bxg5+ {[%clk 0:00:14.7]} 20. Nxg5 {[%clk 0:01:18.3]} 20... Rxe4 {[%clk
0:00:01.1]} 21. Qxh7+ {[%clk 0:01:17.7]} 21... Kf8 {[%clk 0:00:01.7]} 22. Qh8+
{[%clk 0:01:16]} 1-0

[Event "Late-Titled-Tuesday-Blitz-February-20-2024"]
[Site "Chess.com"]
[Date "2024.02.20"]
[Round "1"]
[White "SocoLoco"]
[Black "Mesa_1"]
[Result "0-1"]
[WhiteElo "2199"]
[BlackElo "2564"]
[TimeControl "180+1"]
[EndTime "14:05:51 PST"]
[Termination "Mesa_1 won by resignation"]

1. e4 {[%clk 0:03:00.9]} 1... c5 {[%clk 0:02:55.1]} 2. Nf3 {[%clk 0:03:00.2]}
2... e6 {[%clk 0:02:55.8]} 3. d3 {[%clk 0:02:59.7]} 3... Nc6 {[%clk 0:02:55.3]}
4. g3 {[%clk 0:02:59.1]} 4... g6 {[%clk 0:02:49.7]} 5. Bg2 {[%clk 0:02:58.8]}
5... Bg7 {[%clk 0:02:50.3]} 6. O-O {[%clk 0:02:58.9]} 6... Nge7 {[%clk
0:02:50.1]} 7. c3 {[%clk 0:02:59]} 7... e5 {[%clk 0:02:49.4]} 8. Qc2 {[%clk
0:02:58.4]} 8... O-O {[%clk 0:02:49.3]} 9. a4 {[%clk 0:02:56.5]} 9... h6 {[%clk
0:02:45.7]} 10. Re1 {[%clk 0:02:54.2]} 10... d6 {[%clk 0:02:45.5]} 11. Na3
{[%clk 0:02:53.9]} 11... f5 {[%clk 0:02:45.5]} 12. Nc4 {[%clk 0:02:48.2]} 12...
f4 {[%clk 0:02:43.2]} 13. d4 {[%clk 0:02:38.6]} 13... cxd4 {[%clk 0:02:36.6]}
14. cxd4 {[%clk 0:02:36.9]} 14... fxg3 {[%clk 0:02:37.5]} 15. hxg3 {[%clk
0:02:27.4]} 15... Bg4 {[%clk 0:02:38]} 16. Qb3 {[%clk 0:02:00.4]} 16... Kh7
{[%clk 0:02:23.4]} 17. dxe5 {[%clk 0:01:56.2]} 17... Bxf3 {[%clk 0:02:22.1]} 18.
Bxf3 {[%clk 0:01:53.9]} 18... Nd4 {[%clk 0:02:21.5]} 19. Qxb7 {[%clk 0:01:36.1]}
19... Nxf3+ {[%clk 0:02:20.9]} 20. Kf1 {[%clk 0:01:36.1]} 20... Nxe1 {[%clk
0:02:15.5]} 21. exd6 {[%clk 0:01:36]} 21... Ng8 {[%clk 0:01:49]} 22. Kxe1 {[%clk
0:01:30]} 22... Rc8 {[%clk 0:01:49.3]} 23. Qd5 {[%clk 0:01:00.2]} 23... Nf6
{[%clk 0:01:43]} 24. Qd3 {[%clk 0:00:58.8]} 24... Nxe4 {[%clk 0:01:42.2]} 25. d7
{[%clk 0:00:52.8]} 25... Rxc4 {[%clk 0:01:36.4]} 26. Qxc4 {[%clk 0:00:49.6]}
26... Qa5+ {[%clk 0:01:35.2]} 27. b4 {[%clk 0:00:47.5]} 27... Qe5 {[%clk
0:01:34.1]} 28. Ra2 {[%clk 0:00:30.1]} 28... Nxg3+ {[%clk 0:01:30.7]} 29. Kd1
{[%clk 0:00:22.4]} 29... Ne4 {[%clk 0:01:27.4]} 30. Bb2 {[%clk 0:00:18.8]} 30...
Qd6+ {[%clk 0:01:25.2]} 31. Ke2 {[%clk 0:00:18.4]} 31... Qd2+ {[%clk 0:01:23.2]}
0-1